[Event "SixDays Budapest March GM-B 2023"]
[Site "Budapest"]
[Date "2023.03.25"]
[Round "3.3"]
[White "Moksh Amit Doshi"]
[Black "Tran, Thanh Tu"]
[Result "0-1"]
[ECO "A62"]
[WhiteElo "2388"]
[BlackElo "2402"]
[Annotator "TA"]
[PlyCount "122"]
[EventDate "2023.03.24"]
[EventType "tourn"]
[EventCountry "HUN"]
[SourceTitle "playchess.com"]
[Source "ChessBase"]
[SourceQuality "1"]
[TimeControl "5400+30"]

{[%evp 18,122,18,15,12,0,33,-14,-31,-60,-33,-38,-35,-33,-41,-47,-27,-34,0,0,0,0,1,0,0,0,0,-58,-14,-22,25,8,32,0,41,0,0,-112,-82,-74,-86,-71,-58,-69,-56,-120,-55,-67,-66,-66,-77,-123,-123,-139,-126,-164,-182,-394,-254,-514,-398,-385,-385,-818,-812,-816,-804,-747,-686,-573,-244,-238,-247,-229,-225,-201,-174,-335,-311,-623,-433,-394,-382,-808,-800,-789,-772,-727,-713,-1133,-1091,-1267,-1206,-1882,-1937,-2024,-1044,-936,-926,-833,-826,-2293,-2266,-29962,-29963,-29996,-29997]} 1. d4 {[%emt 0:08:10]} e6 {[%emt 0:00:53]} 2. c4 {[%emt 0:00:23]} c5 {[%emt 0:00:30]} 3. d5 {[%emt 0:01:41]} exd5 {[%emt 0:00:26]} 4. cxd5 {[%emt 0:00:07]} d6 {[%emt 0:00:05]} 5. Nc3 {[%emt 0:00:08]} g6 {[%emt 0:00:35]} 6. Nf3 {[%emt 0:01:06]} Bg7 {[%emt 0:00:06]} 7. g3 {[%emt 0:00:25]} Nf6 {[%emt 0:10:33]} 8. Bg2 {[%emt 0:00:26]} O-O {[%emt 0:00:07]} 9. O-O {[%emt 0:00:07]} Re8 {[%emt 0:00:42]} 10. Re1 {[%emt 0:00:08]} Na6 {[%emt 0:03:40] A62: Modern Benoni: Fianchetto Variation without early ...Nbd7.} 11. h3 {[%emt 0:09:42]} Bf5 {[%emt 0:12:20] [#]} 12. Nh4 $146 {[%emt 0:11:20]} (12. Nd2 $1 $14) ({Predecessor:} 12. Nd2 Nb4 13. e4 Nd3 14. Re2 Bc8 15. Nc4 Nxc1 16. Qxc1 {½-½ Thiyasara,K (1857)-Thilakarathne,G (2143) SRI-ch Colombo 2017 (12)}) 12... Bd7 $11 {[%emt 0:01:29] The position is equal.} 13. a4 Nb4 {[%emt 0:01:32]} (13... Qc8 $5 {[%cal Rd7h3]} 14. g4 Qd8 $15) 14. e4 {[%emt 0:01:15]} c4 15. Be3 {[%emt 0:05:29]} Nd3 {[%emt 0:11:12][%cal Od3b2]} 16. Re2 {[%emt 0:00:06]} Nh5 {[%emt 0:00:47][%cal Od3b2]} 17. Qd2 {[%emt 0:02:59]} Qa5 {[%emt 0:09:01][%cal Od3b2]} (17... f5 $5 {[%cal Rf5f4]} 18. Nf3 f4 19. gxf4 Bxc3 {[%mdl 64] Remove Defender} 20. bxc3 Rxe4 $15) 18. Ra3 {[%emt 0:00:36]} a6 {[%emt 0:05:46]} 19. Nf3 {[%emt 0:02:56]} Rac8 {[%emt 0:03:44]} 20. Kh2 {[%emt 0:08:51]} (20. g4 $5 Nf6 $8 21. Ne1 $11) 20... Nc5 {[%emt 0:07:50]} 21. Nd4 Nf6 {[%emt 0:02:31]} 22. Qc2 {[%emt 0:03:11]} (22. f3 $11) 22... h5 {[%emt 0:02:58]} (22... Qd8 $5) 23. f3 {[%emt 0:05:26] [#]} h4 {[%emt 0:00:19]} 24. g4 {[%emt 0:00:23]} Nh7 {[%emt 0:00:20]} 25. f4 {[%emt 0:03:12]} (25. Kh1 $5) 25... Nd3 {[%emt 0:05:17][%cal Od3f4]} 26. Nf3 {[%emt 0:03:21]} Nf6 {[%emt 0:00:54][%cal Bh7f6,Bf6g4,Bg4e3][%mdl 32]} 27. Nd2 {[%emt 0:04:26] [#]} (27. Nxh4 Qd8 28. Nf3 Nxe4 $17) (27. Qd2 $1 $11) 27... Bxg4 $1 {[%emt 0:00:02][%mdl 512] Black has more active pieces. The white rooks are badly placed.} 28. hxg4 {[%emt 0:00:30]} Nxg4+ {[%emt 0:00:30]} 29. Kh1 {[%emt 0:00:39][%cal Od2c4]} Nxe3 {[%emt 0:00:40]} 30. Rxe3 {[%emt 0:00:05][%cal Od2c4]} Nxf4 {[%emt 0:04:17] White is weak on the dark squares} 31. Bf1 {[%emt 0:02:00]} ({Only move:} 31. Rf3 $1 $15 Nxg2 32. Kxg2) 31... Qc5 {[%emt 0:01:14]} (31... Nh5 $17 32. Bh3 (32. Bxc4 $2 Qd8 $17) (32. Nxc4 Qc5 $17) 32... Rc7) 32. Rf3 $1 $15 {[%emt 0:01:26]} Nh5 {[%emt 0:00:34][%mdl 1024] ...Ng3+ would be deadly. Black has compensation. Dancing on a razor blade.} 33. Bh3 Rc7 {Black continues to play with concentration.} 34. a5 {[%emt 0:03:54]} (34. Nf1 $142) 34... Ng3+ $17 {[%emt 0:01:23]} 35. Kg2 {[%emt 0:01:59]} Qd4 {[%emt 0:01:45]} 36. Ra4 {[%emt 0:02:14]} Bh6 {[%emt 0:00:52]} 37. Ncb1 {[%emt 0:03:15]} (37. Rxg3 {might work better.} hxg3 38. Nf3) 37... Ne2 {[%emt 0:01:53][%csl Ge2][%cal Rd4g1]} 38. Rf2 $2 {[%emt 0:01:43]} (38. Kf1 {was the only defense.} Ng3+ 39. Kg2 Nxe4 40. Rxc4 Nxd2 41. Rxd4 Re2+ 42. Kh1 Rxc2 43. Nxd2 Bxd2 44. Bf1) 38... Nf4+ {[%emt 0:00:16]} 39. Rxf4 {[%emt 0:00:11]} Bxf4 {[%emt 0:00:01]} 40. Rxc4 $2 {[%emt 0:00:08]} (40. Nf3 Qxe4 41. Qxe4 Rxe4 42. Nc3) 40... Rxc4 $19 {[%emt 0:00:08]} 41. Qxc4 {[%emt 0:00:05]} Qxb2 {[%emt 0:01:24]} 42. Qd3 {[%emt 0:01:16]} Re5 {[%emt 0:02:34]} 43. Kf3 {[%emt 0:00:45]} Bg3 {[%emt 0:06:40]} (43... Bh6 $142 44. Bg2 Rg5) 44. Qc3 {[%emt 0:03:29]} Qa2 {[%emt 0:00:02]} (44... Qb5 45. Na3 Qa4 46. Nac4) 45. Qc8+ {[%emt 0:00:49]} Kg7 {[%emt 0:00:03]} 46. Qxb7 {[%emt 0:00:07]} Qc2 $40 {[%emt 0:01:36][%mdl 128] Black wants a kill.} (46... Qxa5 47. Be6 Kh6 48. Qxf7 $11) 47. Qb3 {[%emt 0:02:41] Prevents Qd3+} (47. Qxa6 Re8 48. Bf1) 47... Qc1 {[%emt 0:00:35]} ({Inferior is} 47... Qc5 48. Qe3 $17) 48. Qd3 $2 {[%emt 0:04:17]} (48. Qe3) 48... Qg1 {[%emt 0:00:09] ( -> ...Qf2+)} 49. Qf1 {[%emt 0:00:29] Prevents Qf2+} Qc5 {[%emt 0:00:47]} 50. Nc4 $2 {[%emt 0:04:15]} (50. Qe2) 50... Rg5 {[%emt 0:00:57][%cal Og3f4] aiming for ...Bf4!} 51. Nbd2 {[%emt 0:01:43]} Be5 {[%emt 0:00:21]} ({Avoid the trap} 51... Qd4 $2 52. Ke2 $19) 52. Ke2 {[%emt 0:00:54]} Rg3 {[%emt 0:00:47]} 53. Bd7 {[%emt 0:00:06]} Qd4 {[%emt 0:00:49]} 54. Be8 {[%emt 0:00:32]} Bf6 {[%emt 0:00:24] ...h3 is the strong threat.} 55. Bd7 {[%emt 0:00:07]} Rc3 {[%emt 0:01:50]} 56. Kd1 {[%emt 0:01:08]} Rd3 {[%emt 0:00:32]} 57. Ke2 {[%emt 0:01:15]} Bg5 {[%emt 0:00:17][%cal Rd3d2]} 58. Qf2 {[%emt 0:00:16]} Qc3 {[%emt 0:00:55]} (58... Bxd2 $2 {is the wrong capture.} 59. Qxd4+ Rxd4 60. Nxd2 $19) 59. e5 {[%emt 0:01:02]} dxe5 {[%emt 0:00:39]} 60. Ne4 {[%emt 0:00:39]} Qxc4 {[%emt 0:00:35]} 61. Nd6 {[%emt 0:00:32]} Rd2+ {[%emt 0:00:13] An entertaining game by Tran.   Weighted Error Value: White=1.04/Black=0.39} 0-1

[Event "SixDays Budapest March GM-B 2023"]
[Site "Budapest"]
[Date "2023.03.25"]
[Round "3.4"]
[White "Varga, Csaba Zoltan"]
[Black "Joshua, A P"]
[Result "0-1"]
[ECO "A00"]
[WhiteElo "2278"]
[BlackElo "2300"]
[Annotator "TA"]
[PlyCount "28"]
[EventDate "2023.03.24"]
[EventType "tourn"]
[EventCountry "HUN"]
[SourceTitle "playchess.com"]
[Source "ChessBase"]
[SourceQuality "1"]
[TimeControl "5400+30"]

{[%evp 9,28,-10,-12,-82,-74,-179,-176,-141,-165,-241,-254,-718,-420,-1120,-1101,-1122,-1068,-983,-991,-2188,-2047]} 1. c3 {[%emt 0:00:34]} d5 {[%emt 0:02:14]} 2. h4 {[%emt 0:01:39]} e5 {[%emt 0:00:48]} 3. d4 {[%emt 0:00:09]} e4 {[%emt 0:00:27] [#]} 4. Bg5 $146 {[%emt 0:00:48]} ({Predecessor:} 4. Bf4 Nf6 5. Qb3 Bd6 6. Bg5 c6 7. Na3 h6 8. Be3 a5 9. Nh3 O-O 10. Bf4 {0-1 Rajin,M (1995)-Zegarac,V (2233) Vojvodina-chT 2016 (4.4)}) 4... Ne7 {[%emt 0:01:40]} 5. c4 {[%emt 0:03:23]} h6 {[%emt 0:01:18]} 6. Bf4 {[%emt 0:01:35] A00: Irregular Openings.} (6. Bxe7 $11 {remains equal.} Bxe7 7. cxd5) 6... dxc4 $17 {[%emt 0:07:43]} 7. Qa4+ {[%emt 0:04:17]} (7. e3 $17) 7... Nbc6 $19 {[%emt 0:01:11]} 8. Nc3 {[%emt 0:01:40] [#] Black is clearly better.} Nd5 $1 {[%emt 0:01:57]} ({Resist} 8... Qxd4 9. Rd1 Qb6 10. Nb5 $16 (10. Nxe4 $2 {too greedy.} Qxb2 11. Qxc4 Ng6 $19) (10. Nxe4 $2 Qxb2 11. Qxc4 Ng6 $19)) 9. Nxd5 {[%emt 0:03:52]} (9. e3 $142) 9... Qxd5 {[%emt 0:00:21]} 10. O-O-O $2 {[%emt 0:00:21]} (10. e3 b5 11. Qd1) 10... e3 {[%emt 0:05:59] Threatens to win with ...b5.} 11. Bxe3 {[%emt 0:01:35]} (11. Rh3 $142 exf2 12. Re3+ Kd8 13. Nh3) 11... b5 {[%emt 0:00:25] Black is clearly winning.} 12. Qc2 {[%emt 0:01:02]} Bf5 {[%emt 0:00:12]} 13. Rd3 {[%emt 0:00:22]} Nb4 {[%emt 0:01:05][%mdl 64] [#] Pin, Double Attack} (13... Bxd3 $2 {loses.} 14. exd3 cxd3 15. Qxd3 $19) 14. Qc3 {[%emt 0:00:11]} Nxa2+ {[%emt 0:00:15] Weighted Error Value: White=1.75/Black=0.36} 0-1

[Event "SixDays Budapest March GM-B 2023"]
[Site "Budapest"]
[Date "2023.03.25"]
[Round "3.5"]
[White "Pribelszky, Bence"]
[Black "Royal, Shreyas"]
[Result "0-1"]
[ECO "A06"]
[WhiteElo "2380"]
[BlackElo "2452"]
[Annotator "TA"]
[PlyCount "62"]
[EventDate "2023.03.24"]
[EventType "tourn"]
[EventCountry "HUN"]
[SourceTitle "playchess.com"]
[Source "ChessBase"]
[SourceQuality "1"]
[TimeControl "5400+30"]

{[%evp 20,62,22,0,0,0,6,0,0,-6,15,0,0,3,14,12,7,-12,-10,-43,-50,-52,-4,-106,-110,-259,-250,-389,-386,-394,-393,-745,-732,-673,-642,-645,-634,-644,-637,-633,-626,-618,-601,-638,-625]} 1. Nf3 {[%emt 0:00:34]} d5 {[%emt 0:00:36]} 2. g3 {[%emt 0:00:05]} Bg4 {[%emt 0:00:06]} 3. Bg2 {[%emt 0:00:05]} c6 {[%emt 0:00:05]} 4. O-O {[%emt 0:00:07]} Nd7 {[%emt 0:00:04]} 5. d3 {[%emt 0:00:15]} e5 {[%emt 0:00:25]} 6. e4 {[%emt 0:00:33]} dxe4 {[%emt 0:00:40]} 7. dxe4 {[%emt 0:00:03]} Ngf6 {[%emt 0:00:13]} 8. Nbd2 {[%emt 0:00:32]} Bc5 {[%emt 0:00:31]} 9. h3 {[%emt 0:00:52]} Bh5 {[%emt 0:00:10]} 10. Qe1 {[%emt 0:01:28]} O-O {[%emt 0:00:19]} 11. Nc4 {[%emt 0:00:14]} Re8 {[%emt 0:00:10] A07: Réti Opening: New York and Capablanca Systems.} 12. a4 {[%emt 0:00:19]} b5 {[%emt 0:00:05]} 13. Na5 {[%emt 0:11:22]} Qc7 {[%emt 0:00:06] The position is equal.} 14. Nb3 {[%emt 0:01:48]} a6 {[%emt 0:10:29]} 15. Nh4 {[%emt 0:05:44]} Bb6 {[%emt 0:02:07]} 16. a5 {[%emt 0:14:30]} Ba7 {[%emt 0:00:12]} 17. Be3 {[%emt 0:00:07]} Rab8 {[%emt 0:06:58] [#]} 18. Nd2 $146 {[%emt 0:04:44]} ({Predecessor:} 18. Bxa7 Qxa7 19. Nc1 Qc7 20. Qe3 c5 {½-½ Bocheva,M (2298)-Gavrijski,D (2234) BUL-chT22 email 2020 [4]}) 18... Nf8 {[%emt 0:04:21][%cal Bd7f8,Bf8e6,Be6f4][%mdl 32]} 19. f4 {[%emt 0:17:42]} exf4 {[%emt 0:08:47]} 20. gxf4 {[%emt 0:00:07]} Rbd8 {[%emt 0:00:31]} (20... Bg6 $15 {feels stronger.}) 21. Ra3 {[%emt 0:21:01]} (21. Bxa7 $11 Qxa7+ 22. Qf2 Qxf2+ 23. Rxf2) 21... Ne6 $17 {[%emt 0:03:13] Black has more active pieces.} 22. e5 {[%emt 0:04:32] [#] White does not recover from this.} (22. Qf2 $17 Nxf4 23. Qxf4 Qxf4 24. Rxf4) 22... Nxf4 $1 $19 {[%emt 0:02:24][%mdl 64] Remove Defender, Decoy} 23. Rxf4 {[%emt 0:07:40]} (23. Bxa7 $142 Qxa7+ 24. Qf2 Qxf2+ 25. Rxf2 Nxg2 26. Nxg2 Rxe5 27. Nf4) 23... Qxe5 {[%emt 0:00:15]} ({Not} 23... Rxe5 24. Qf2 Rxe3 25. Rxe3 $14) 24. Re4 {[%emt 0:01:29]} Nxe4 {[%emt 0:00:16]} 25. Nxe4 {[%emt 0:00:22]} (25. Bxe4 Bb8 26. Qf2 Rxd2 {[%mdl 64] Remove Defender} 27. Qxd2 Qxe4 28. Ng2) 25... Rd1 {[%emt 0:00:05][%mdl 64] Deflection. Black is clearly winning.} 26. Qxd1 {[%emt 0:00:43]} Bxe3+ {[%emt 0:01:14]} 27. Rxe3 {[%emt 0:00:06]} Bxd1 {[%emt 0:00:04]} 28. Nf6+ {[%emt 0:00:06]} gxf6 {[%emt 0:00:04]} 29. Rxe5 {[%emt 0:00:07]} fxe5 {[%emt 0:00:08]} 30. Bxc6 {[%emt 0:00:09]} Rc8 {[%emt 0:00:47]} 31. Bb7 {[%emt 0:00:04]} Rxc2 {[%emt 0:00:09] Weighted Error Value: White=0.63/Black=0.07 (flawless)} 0-1

[Event "SixDays Budapest March GM-B 2023"]
[Site "Budapest"]
[Date "2023.03.26"]
[Round "4.1"]
[White "Vantika Agrawal"]
[Black "Royal, Shreyas"]
[Result "1-0"]
[ECO "E10"]
[WhiteElo "2367"]
[BlackElo "2452"]
[Annotator "TA"]
[PlyCount "119"]
[EventDate "2023.03.24"]
[EventType "tourn"]
[EventCountry "HUN"]
[SourceTitle "playchess.com"]
[Source "ChessBase"]
[SourceQuality "1"]
[TimeControl "5400+30"]

{[%evp 13,119,14,0,-7,27,45,29,27,42,37,73,54,46,0,50,0,-8,-62,-66,-56,-66,-55,53,19,25,6,93,49,207,208,208,208,208,212,281,257,245,268,259,204,316,297,351,333,360,358,345,347,275,182,502,478,719,422,428,423,424,416,441,441,441,441,441,433,555,508,535,518,748,718,708,660,739,691,708,702,699,455,455,455,644,754,721,704,694,666,747,758,752,748,929,927,856,837,567,414,1516,1555,1364,1198,29987,29988,29988,29989,29990,29991,29991,29992]} 1. d4 {[%emt 0:00:40]} Nf6 {[%emt 0:00:38]} 2. c4 {[%emt 0:00:50]} e6 {[%emt 0:00:06]} 3. Nf3 {[%emt 0:00:05]} d5 {[%emt 0:00:05]} 4. g3 {[%emt 0:00:04]} Bb4+ {[%emt 0:00:05]} 5. Bd2 {[%emt 0:00:10]} Be7 {[%emt 0:00:07]} 6. Bg2 {[%emt 0:00:05]} O-O {[%emt 0:00:06]} 7. O-O {[%emt 0:00:14]} Nbd7 {[%emt 0:00:04][%cal Bb8d7,Bd7b6,Bb6c4][%mdl 32]} 8. b4 {[%emt 0:01:55] [#] E11: Bogo-Indian.} Nb6 $146 {[%emt 0:06:00]} ({Predecessor:} 8... c6 9. a4 b6 10. Qb3 a5 11. cxd5 exd5 12. Rc1 axb4 13. Rxc6 Ba6 14. Bxb4 Bxe2 15. Nc3 Bc4 {1-0 Le,Q (2728)-Fedoseev,V (2674) Chessable Masters Play In rapid 2023 (7)}) 9. c5 {[%emt 0:01:53]} Nc4 {[%emt 0:00:06]} 10. Bf4 {[%emt 0:01:05] White has an edge.} a5 {[%emt 0:06:23]} 11. b5 {[%emt 0:03:55]} b6 {[%emt 0:04:25]} 12. c6 {[%emt 0:17:46]} a4 {[%emt 0:00:34]} 13. Nc3 {[%emt 0:10:17]} (13. Ne5 $14 {was preferrable.}) 13... Ra5 {[%emt 0:00:09]} (13... Ne4 $11 14. Nxe4 (14. Nxa4 f6 $15) 14... dxe4) 14. Qd3 {[%emt 0:26:24]} (14. Nxa4 Ne4 $15) (14. Ne5 $1 $14) 14... Bb4 $11 {[%emt 0:00:06]} 15. Rab1 {[%emt 0:03:49]} ({White should try} 15. Ne5 $11) 15... Bxc3 $1 $15 {[%emt 0:05:35]} 16. Qxc3 {[%emt 0:00:05]} Ne4 {[%emt 0:00:04] Excellent horsemanship.} 17. Qd3 {[%emt 0:01:20]} h6 {[%emt 0:01:32]} (17... Ned6 $1 $15) 18. Nd2 {[%emt 0:07:12]} (18. Rb4 $5 {[%cal Rb4c4]}) 18... Ned6 {[%emt 0:00:53]} 19. Rfc1 $36 {[%emt 0:07:57][%cal Rd2c4,Bf1c1,Bc1c4,Bc4a4,Ba4a3][%mdl 2080] White fights for an advantage.} Re8 {[%emt 0:03:29]} (19... g5 $11 {keeps the balance.} 20. Bxd6 Nxd6) 20. Rb4 {[%emt 0:07:01][%cal Rd2c4] White is more active.} (20. Nxc4 {feels hotter.} dxc4 21. Rxc4 Nxc4 22. Qxc4 e5 23. Bxe5 Be6 24. Qc2) 20... Rxb5 $2 {[%emt 0:31:03] Black cannot hold the game after this.} (20... Nxb5 $14 21. Nxc4 dxc4 22. Rcxc4 (22. Qxc4 Ba6 $14) 22... Ba6) 21. Rxb5 $18 {[%emt 0:00:45]} (21. Rxa4 $2 {too greedy.} Nb2 22. Qa3 Nxa4 23. Qxa4 Ra5 $19) (21. Bxd6 Nxd6 22. Rxa4 (22. Rxb5 Ba6 $15 {[%mdl 64] Pin}) 22... Qe7 $14) 21... Nxb5 {[%emt 0:00:32]} 22. Nxc4 {[%emt 0:00:09]} dxc4 {[%emt 0:00:06]} 23. Rxc4 {[%emt 0:01:50]} a3 {[%emt 0:00:02]} 24. Ra4 {[%emt 0:01:01]} Nd6 {[%emt 0:00:05]} 25. Rxa3 {[%emt 0:00:32]} Qe7 {[%emt 0:00:21]} 26. Ra7 {[%emt 0:01:07]} Rd8 {[%emt 0:00:25]} (26... f6 $142 27. Bc1 e5 28. dxe5 {[%mdl 64] Discovered Attack} fxe5) 27. h4 {[%emt 0:00:41]} Ne8 {[%emt 0:01:06]} 28. Qc3 {[%emt 0:01:34]} g5 {[%emt 0:02:02]} 29. hxg5 {[%emt 0:00:44]} hxg5 {[%emt 0:00:06]} 30. Bc1 {[%emt 0:00:51]} Qf6 {[%emt 0:00:37]} 31. Qe3 {[%emt 0:01:36] [#] And now Ra8 would win.} e5 $2 {[%emt 0:01:30]} (31... Rxd4 32. Ra8 (32. Qxg5+ Qxg5 33. Bxg5 f6 $18) 32... Rd8) 32. d5 {[%emt 0:00:48]} ({Worse is} 32. dxe5 Rd1+ 33. Bf1 Qxc6 34. Qxg5+ Ng7 $17) ({Weaker is} 32. Qxe5 Qxe5 33. dxe5 Rd1+ 34. Kh2 Rxc1 $16) 32... g4 {[%emt 0:00:04]} (32... Bf5 $142 33. Bb2 Rc8 34. Qxe5 Qxe5 35. Bxe5 f6) 33. Qg5+ {[%emt 0:00:44]} Qxg5 {[%emt 0:00:12]} 34. Bxg5 {[%emt 0:00:03]} f6 {[%emt 0:00:06]} 35. Bd2 {[%emt 0:01:11]} Be6 {[%emt 0:01:01]} 36. e4 {[%emt 0:00:31]} Bf7 {[%emt 0:00:03]} 37. Bb4 {[%emt 0:00:21]} Bg6 {[%emt 0:00:34]} 38. a4 {[%emt 0:00:48]} Rb8 {[%emt 0:00:35]} 39. f3 {[%emt 0:00:54]} gxf3 {[%emt 0:00:21]} 40. Bxf3 {[%emt 0:00:04]} f5 {[%emt 0:00:08]} 41. exf5 {[%emt 0:00:36]} Bxf5 {[%emt 0:00:04]} 42. g4 {[%emt 0:00:46][%cal Bg3g4,Bg4g5][%mdl 32]} Bd3 {[%emt 0:00:23]} 43. g5 {[%emt 0:01:01]} Bf5 {[%emt 0:00:14]} 44. Kf2 {[%emt 0:00:31]} e4 {[%emt 0:00:31]} 45. Bg2 {[%emt 0:00:11]} Rd8 {[%emt 0:00:08]} 46. Bf1 {[%emt 0:00:33]} Kf7 {[%emt 0:00:34]} (46... Rxd5 $142 47. Bc4 Be6) 47. Bc4 {[%emt 0:00:16]} Kg6 {[%emt 0:00:04]} 48. Be7 {[%emt 0:00:17]} Rc8 {[%emt 0:00:22]} 49. Ke3 {[%emt 0:00:49]} Nd6 {[%emt 0:00:29]} 50. Bxd6 {[%emt 0:00:29]} cxd6 {[%emt 0:00:04][%mdl 4096] Endgame KRB-KRB} 51. Rb7 {[%emt 0:00:38]} Ra8 {[%emt 0:02:54]} 52. Bb5 {[%emt 0:00:19]} Kxg5 {[%emt 0:00:05]} 53. Rxb6 {[%emt 0:00:26]} Kf6 {[%emt 0:00:15]} 54. Kd4 {[%emt 0:00:47] [#] Hoping for c7.} Rh8 {[%emt 0:00:56]} (54... e3 $142 55. c7 e2 56. Bxe2 Rxa4+ 57. Bc4 Ke7) 55. c7 {[%emt 0:00:14]} Ke7 {[%emt 0:00:04]} 56. Rb8 {[%emt 0:00:17]} Rc8 {[%emt 0:00:05]} 57. Rxc8 {[%emt 0:00:17] White mates.} Bxc8 {[%emt 0:00:04]} 58. Kxe4 {[%emt 0:00:02]} Bb7 {[%emt 0:00:33]} 59. a5 {[%emt 0:00:12][%cal Ba4a5,Ba5a6][%mdl 32]} Bc8 {[%emt 0:00:03]} 60. a6 {[%emt 0:00:07] Weighted Error Value: White=0.36/Black=0.55} 1-0